bitfinex/quotes_ETHUSD_20240823
["timestamp","ask_amount","ask_price","bid_price","bid_amount"]
[1724452163285,15.26176,2790.5,2790.4,0.1316437]
[1724452163841,3.63432081,2790.6,2790.4,0.1316437]
[1724452164175,3.58315,2790.9,2790.4,0.1316437]
[1724452164860,3.5832,2790.8,2790.4,0.1316437]
[1724452165736,6.58296,2791.0,2790.4,0.1316437]
[1724452166186,3.5832,2790.8,2790.4,0.1316437]
[1724452168193,3.58341,2790.7,2790.4,0.1316437]
[1724452168503,3.5832,2790.8,2790.4,0.1316437]
[1724452168985,3.58308,2790.9,2790.4,0.1316437]
[1724452169319,8.43067512,2791.4,2790.6,3.58337]
[1724452169320,3.58252,2791.4,2790.6,3.58337]
[1724452169610,3.58193,2791.8,2791.0,3.58288]
[1724452169751,3.58176,2792.0,2791.1,7.9795]
[1724452170096,3.58176,2792.0,2791.1,27.8195]
[1724452170299,11.67604,2792.2,2791.2,3.21188201]
[1724452170500,3.58154,2792.1,2791.2,6.722828]
[1724452171193,3.58179,2791.9,2791.2,3.140238]
[1724452171497,11.67639,2791.9,2791.1,19.84]
[1724452171698,3.58192,2791.8,2791.1,19.84]
[1724452172056,3.58241,2791.5,2791.1,19.84]
[1724452172351,3.58208,2791.7,2791.1,19.84]
[1724452172551,3.58217,2791.6,2791.1,19.84]
[1724452173876,3.5823,2791.5,2791.1,19.84]
[1724452174061,3.58205,2791.7,2791.1,19.84]
[1724452174682,3.58205,2791.7,2791.1,21.04206732]
[1724452174862,3.5822,2791.6,2791.1,21.04206732]
[1724452175062,3.5822,2791.6,2791.1,19.84]
[1724452175291,7.4766,2792.0,2791.1,19.84]
[1724452175292,3.58254,2791.4,2791.1,19.84]
[1724452175504,3.5824,2791.5,2790.5,3.58355]
[1724452175505,3.5824,2791.5,2790.6,19.84]
[1724452175696,3.58245,2791.4,2790.7,3.5833]
[1724452175886,3.58245,2791.4,2790.6,19.84]
[1724452176082,3.5824,2791.5,2790.6,25.16728987]
[1724452176403,3.58207,2791.7,2790.8,3.58312]
[1724452176698,3.58207,2791.7,2790.7,3.5833]
[1724452176699,3.58219,2791.6,2790.7,3.5833]
[1724452177251,3.58219,2791.6,2790.8,3.58319]
[1724452177494,3.58256,2791.3,2790.6,25.16726987]
[1724452177805,3.58256,2791.3,2790.6,21.58384987]
[1724452178377,3.58256,2791.3,2790.6,19.84]
[1724452178378,3.58285,2791.1,2790.6,19.84]
[1724452178852,3.58285,2791.1,2790.4,0.1316437]
[1724452179053,7.16524,2791.3,2790.4,3.7152937]
[1724452179293,3.58273,2791.2,2790.4,3.7152937]
[1724452179489,4.84822512,2791.4,2790.4,0.1316437]
[1724452179704,8.43073512,2791.4,2790.5,6.36671437]
[1724452180548,8.43073512,2791.4,2790.4,0.1316437]
[1724452180549,4.84822512,2791.4,2790.4,0.1316437]
[1724452180688,7.6947,2791.2,2790.4,0.1316437]
[1724452180896,3.58316,2790.9,2790.4,0.1316437]
[1724452182810,4.84822512,2791.0,2790.4,3.7152837]
[1724452183818,4.84822512,2791.0,2790.5,3.58355]
[1724452184223,4.84822512,2791.0,2790.5,4.31343337]
[1724452184394,3.58273,2791.2,2790.5,0.72988337]
[1724452184592,3.0,2791.1,2790.5,0.72988337]
[1724452184820,1.0,2791.3,2790.6,3.58335]
[1724452184821,7.58264,2791.3,2790.6,3.58335]
[1724452185055,1.0,2791.3,2790.8,3.58318]
[1724452185238,1.0,2791.3,2790.6,11.50576]
[1724452185605,4.0,2791.3,2790.6,11.50576]
[1724452185757,4.0,2791.3,2790.7,3.58332]
[1724452186116,7.58257,2791.3,2790.4,3.7152837]
[1724452186458,11.16525,2791.3,2790.4,5.23743407]
[1724452186613,7.58257,2791.3,2790.5,3.58356]
[1724452186815,4.0,2791.3,2790.7,3.58323]
[1724452187058,4.0,2791.3,2790.8,3.58317]
[1724452187358,1.0,2791.3,2791.0,3.58293]
[1724452187513,1.0,2791.3,2791.0,0.72377573]
[1724452187720,1.0,2791.3,2791.0,4.30664573]
[1724452187960,1.0,2791.3,2791.1,3.5828]
[1724452188663,1.0,2791.3,2791.0,4.30664573]
[1724452188829,1.0,2791.3,2791.1,4.80563457]
[1724452190047,1.0,2791.3,2791.2,7.16536]
[1724452190587,1.0,2791.3,2791.2,30.58804]
[1724452191365,1.0,2791.3,2791.2,42.62069721]
[1724452191918,1.0,2791.3,2791.2,38.47776]
[1724452192159,1.0,2791.3,2791.2,42.21922478]
[1724452194261,1.0,2791.3,2791.2,41.66922478]
[1724452195873,1.0,2791.3,2791.2,42.21922478]
[1724452197016,1.0,2791.3,2791.2,45.80190478]
[1724452197469,1.0,2791.3,2791.2,42.77947859]
[1724452197618,1.0,2791.3,2791.2,45.80190478]
[1724452197819,0.25285888,2791.3,2791.2,46.84844402]
[1724452198359,0.25285888,2791.3,2791.2,46.28821752]
[1724452198529,0.25285888,2791.3,2791.2,42.21922478]
[1724452198762,0.25285888,2791.3,2791.2,45.80190478]
[1724452199744,0.25285888,2791.3,2791.2,46.36216113]
[1724452200977,0.25285888,2791.3,2791.2,50.43115387]
[1724452201136,8.88e-06,2791.3,2791.2,50.43111598]
[1724452201639,7.6947,2792.7,2792.4,3.58105]
[1724452201836,11.30235,2793.1,2792.4,3.58105]
[1724452202039,7.7221,2793.1,2792.5,3.58101]
[1724452202271,7.7221,2793.1,2792.5,3.65262299]
[1724452202476,7.7221,2793.1,2792.5,3.58101]
[1724452202937,7.7221,2793.1,2792.4,0.358105]
[1724452203555,3.58046,2793.0,2792.4,0.358105]
[1724452203941,3.58054,2792.9,2792.4,0.358105]
[1724452204494,11.30238,2793.1,2792.4,3.939145]
[1724452204495,7.7221,2793.1,2792.4,3.939145]
[1724452204834,11.30239,2793.1,2792.4,7.520205]
[1724452205301,7.7221,2793.1,2792.5,0.70897123]
[1724452205452,7.7221,2793.5,2792.6,3.58078]
[1724452205672,3.57989,2793.4,2792.7,3.58069]
[1724452205990,7.7221,2793.5,2792.8,3.58062]
[1724452206152,7.7221,2793.5,2792.5,0.70897123]
[1724452206153,7.7221,2793.5,2793.0,3.5803]
[1724452206350,3.57948,2793.7,2793.0,3.5803]
[1724452206861,8.42273913,2793.8,2793.1,3.58017]
[1724452207062,3.57949,2793.7,2793.1,3.58017]
[1724452207265,3.57949,2793.7,2792.8,3.58055]
[1724452207588,3.57949,2793.7,2792.9,0.358055]
[1724452207589,3.57964,2793.6,2792.9,0.358055]
[1724452208340,12.56544913,2793.4,2792.4,0.358105]
[1724452208579,12.56544913,2793.4,2792.2,23.48133]
[1724452208786,3.58032,2793.1,2792.4,3.58106]
[1724452208987,16.14536913,2793.4,2792.5,3.58094]
[1724452209170,6.58006,2793.3,2792.5,3.58094]
[1724452209340,6.58006,2793.3,2792.6,0.358094]
[1724452209685,3.58015,2793.2,2792.6,0.358094]
[1724452209855,6.57999,2793.3,2792.6,0.358094]
[1724452210061,3.57999,2793.3,2792.6,0.358094]
[1724452210365,3.57999,2793.3,2792.6,3.938964]
[1724452210569,16.14488913,2793.8,2792.8,7.1611]
[1724452210778,3.57976,2793.5,2792.8,3.58055]
[1724452210938,12.56544913,2793.8,2792.7,0.7519894]
[1724452211142,3.57985,2793.5,2792.7,0.7519894]
[1724452211377,3.5799,2793.4,2792.7,4.3326294]
[1724452211576,3.58,2793.3,2792.7,0.7519894]
[1724452211786,3.0,2793.7,2792.7,0.7519894]
[1724452211787,3.5802,2793.2,2792.7,0.7519894]
[1724452211949,3.58033,2793.1,2792.3,3.5812]
[1724452212156,11.3023,2793.2,2792.4,3.58114]
[1724452212358,14.88253,2793.2,2792.4,3.58114]
[1724452212560,14.88253,2793.2,2792.3,3.5812]
[1724452212561,3.5803,2793.1,2792.3,3.58118]
[1724452212760,18.51274583,2793.2,2792.4,3.58112]
[1724452213055,11.35231583,2793.2,2792.2,19.9]
[1724452213241,14.93253583,2793.2,2792.4,3.58111]
[1724452213605,3.58035,2793.1,2792.4,3.58111]
[1724452213795,14.93253583,2793.2,2792.5,3.58099]
[1724452214102,14.93253583,2793.2,2792.2,19.9]
[1724452214103,3.58026,2793.1,2792.3,3.58117]
[1724452214290,14.93253583,2793.2,2792.4,6.28737]
[1724452214444,14.93253583,2793.2,2792.4,2.70625]
[1724452214643,3.58028,2793.1,2792.4,2.70625]
[1724452215165,3.5804,2793.0,2792.4,2.70625]
[1724452215386,3.5804,2793.0,2792.4,6.28738]
[1724452215589,3.58065,2792.8,2792.4,2.70625]
[1724452215879,7.21086583,2792.8,2792.1,23.42151]
[1724452216088,7.21086583,2792.8,2792.1,19.84]
[1724452216592,7.21086583,2792.8,2792.1,23.42146]
[1724452216772,7.5587,2792.7,2791.8,7.44]
[1724452216977,3.63021583,2792.4,2791.7,3.58199]
[1724452217318,3.58128,2792.3,2791.6,19.84]
[1724452217596,7.5587,2792.7,2792.1,3.58144]
[1724452218281,3.58105,2792.5,2791.7,7.32341478]
[1724452218452,3.58105,2792.5,2791.7,3.74146478]
[1724452218856,3.63021583,2792.4,2791.7,3.74146478]
[1724452219210,3.63021583,2792.4,2792.0,3.58165]
[1724452219357,7.5587,2792.7,2792.2,3.58139]
[1724452219984,7.5587,2792.7,2792.0,3.58165]
[1724452220354,7.5587,2792.7,2792.0,3.58155]
[1724452222059,3.58098,2792.6,2791.9,19.84]
[1724452223161,3.63021583,2792.4,2791.9,19.84]
[1724452223388,3.63021583,2792.4,2791.9,20.23685442]
[1724452223615,3.58098,2792.6,2791.9,23.81862442]
[1724452223772,7.5587,2792.7,2791.9,20.23685442]
[1724452223977,7.5587,2792.7,2792.0,3.58157]
[1724452224905,7.5587,2792.7,2792.0,3.58156]
[1724452225082,7.5587,2792.7,2792.1,2.38184144]
[1724452225475,3.58089,2792.6,2791.9,20.23685442]
[1724452226165,7.16188,2792.6,2791.9,20.23685442]
[1724452226365,7.16188,2792.6,2791.9,0.39685442]
[1724452226568,3.58089,2792.6,2791.9,0.39685442]
[1724452226911,3.58089,2792.6,2791.8,5.93995648]
[1724452226912,3.63021583,2792.4,2791.8,2.35814648]
[1724452227296,3.58135,2792.3,2791.6,23.42217]
[1724452227465,3.58148,2792.2,2791.4,3.58236]
[1724452227665,7.5587,2792.3,2791.4,3.58234]
[1724452227866,7.5587,2792.3,2791.7,3.58198]
[1724452228111,3.63021583,2792.4,2791.7,3.58198]
[1724452228405,3.63021583,2792.4,2791.8,3.939988]
[1724452228973,7.21141583,2792.4,2791.8,0.358198]
[1724452229172,10.79265583,2792.4,2791.8,0.358198]
[1724452229590,3.58139,2792.3,2791.8,0.358198]
[1724452229801,3.58139,2792.3,2791.5,7.16442]
[1724452230015,7.21141583,2792.4,2791.4,3.58238]
[1724452230016,3.63021583,2792.0,2791.4,3.58238]
[1724452230178,7.5587,2792.2,2791.6,3.58214]
[1724452230381,7.5587,2792.2,2791.8,3.5818]
[1724452230587,7.5587,2792.2,2791.8,0.716394]
[1724452230978,7.5587,2792.2,2791.6,3.58214]
[1724452231817,11.14013,2792.2,2791.2,7.44]
[1724452232019,11.14013,2792.2,2791.5,3.58229]
[1724452232309,7.5587,2792.2,2791.6,3.58207]
[1724452232614,3.63021583,2792.0,2791.2,7.44]
[1724452232779,3.58201,2791.8,2791.2,10.168]
[1724452232982,7.917,2791.6,2791.1,19.84]
[1724452233679,11.54721583,2791.6,2790.8,7.44]
[1724452234017,3.58233,2791.5,2790.7,23.42332]
[1724452234180,3.58233,2791.5,2790.7,19.84]
[1724452234181,3.58256,2791.3,2790.7,19.84]
[1724452234395,3.58233,2791.5,2790.7,19.84]
[1724452234396,3.58237,2791.5,2790.7,19.84]
[1724452234703,3.5825,2791.4,2790.7,23.42332]
[1724452234901,3.5825,2791.4,2790.7,26.124]
[1724452235278,3.63021583,2791.2,2790.7,19.84]
[1724452235483,7.21301583,2791.2,2790.7,19.84]
[1724452235967,7.21301583,2791.2,2790.4,0.1316437]
[1724452235968,3.58307,2790.9,2790.4,0.1316437]
[1724452236173,7.16626,2790.9,2790.4,0.1316437]
[1724452236525,3.58307,2790.9,2790.4,0.1316437]
[1724452236822,3.58323,2790.8,2790.4,0.1316437]
[1724452237119,7.16625,2790.9,2790.4,0.1316437]
[1724452237268,3.58307,2790.9,2790.4,0.1316437]
[1724452237925,7.917,2791.0,2790.5,3.58355]
[1724452238069,7.21299583,2791.2,2790.5,3.58355]
[1724452238070,7.21299583,2791.2,2790.5,3.95506937]
[1724452238883,3.58282,2791.1,2790.4,0.1316437]
[1724452240387,3.58316,2790.9,2790.4,0.1316437]
[1724452240911,3.58333,2790.7,2790.4,0.1316437]
[1724452241096,11.50033,2790.7,2790.4,0.1316437]
[1724452241300,13.37170058,2790.7,2790.4,0.1316437]
[1724452241875,3.58348,2790.6,2790.4,0.1316437]
[1724452242378,7.917,2791.1,2790.4,0.1316437]
[1724452242575,3.63021583,2791.4,2790.6,3.58336]
[1724452242801,6.58257,2791.3,2790.6,4.31322537]
[1724452243220,3.58277,2791.2,2790.4,3.7152437]
[1724452243373,3.0,2791.3,2790.6,3.58337]
[1724452243577,6.58256,2791.3,2790.6,3.58337]
[1724452244413,6.41226,2791.3,2790.6,3.58337]
[1724452245077,2.8297,2791.3,2790.7,3.58332]
[1724452245275,7.917,2791.9,2791.3,3.58254]
[1724452245622,7.917,2791.9,2791.1,3.5827]
[1724452245623,11.49885,2791.9,2791.1,3.5827]
[1724452245829,11.49885,2791.9,2791.2,0.35827]
[1724452246043,3.58238,2791.5,2790.8,20.198332]
[1724452246183,3.58238,2791.5,2790.8,23.781522]
[1724452246402,3.63021583,2791.6,2790.8,20.198332]
[1724452247135,3.5825,2791.4,2790.8,20.198332]
[1724452247438,3.63021583,2791.6,2790.9,3.58298]
[1724452247639,3.63021583,2791.6,2791.1,3.58279]
[1724452247796,3.63021583,2791.6,2791.0,2.3781312]
[1724452248319,3.63021583,2791.6,2790.8,20.198332]
[1724452248519,3.63021583,2791.6,2790.8,23.781442]
[1724452248520,7.21246583,2791.6,2790.8,23.781442]
[1724452248926,7.21246583,2791.6,2790.8,0.358332]
[1724452248927,7.917,2791.5,2790.8,0.358332]
[1724452249138,3.58264,2791.3,2790.5,3.58349]
[1724452249321,11.4994,2791.5,2790.5,3.58349]
[1724452249512,11.4994,2791.5,2790.7,3.58324]
[1724452249694,7.917,2791.5,2790.5,3.58349]
[1724452250029,3.58269,2791.2,2790.4,3.7153437]
[1724452250224,3.58269,2791.2,2790.5,4.31349637]
[1724452251037,3.58243,2791.4,2790.7,3.58332]
[1724452251239,3.0,2791.3,2790.6,3.58345]
[1724452251438,6.58257,2791.3,2790.6,3.58345]
[1724452251797,3.0,2791.3,2790.6,3.58337]
[1724452251992,3.63021583,2791.2,2790.4,3.7153137]
[1724452252241,3.63021583,2791.2,2790.6,3.58345]
[1724452253222,3.63021583,2791.2,2790.4,7.2988737]
[1724452253444,3.63021583,2791.2,2790.4,3.7152537]
[1724452253738,7.21292583,2791.2,2790.4,3.7152537]
[1724452253947,10.79571583,2791.2,2790.4,3.7152537]
[1724452254101,3.63021583,2791.2,2790.4,3.7152537]
[1724452254302,3.63021583,2791.2,2790.6,3.58345]
[1724452254623,7.21292583,2791.2,2790.4,4.08677907]
[1724452255340,3.58271,2791.2,2790.4,4.08677907]
[1724452255544,14.69839,2791.3,2790.6,7.16682]
[1724452255744,14.69839,2791.3,2790.6,4.35037891]
[1724452255745,3.0,2791.3,2790.6,4.35037891]
[1724452255952,8.1158,2792.0,2790.7,27.3543]
[1724452256265,8.1158,2792.3,2791.6,3.58208]
[1724452256394,8.1158,2792.3,2791.7,3.58196]
[1724452257409,3.63021583,2792.0,2791.2,27.28]
[1724452257615,3.58205,2791.7,2791.2,27.28]
[1724452257814,3.58205,2791.7,2790.9,3.58301]
[1724452258323,3.58218,2791.6,2790.9,3.58301]
[1724452258512,3.58232,2791.5,2790.8,6.39528989]
[1724452258715,8.1158,2791.3,2790.6,3.58335]
[1724452259307,11.69847,2791.3,2790.6,3.58335]
[1724452259838,8.1158,2791.3,2790.6,3.58334]
[1724452260649,8.1158,2791.3,2790.7,3.58325]
[1724452260911,11.74601583,2791.6,2791.0,7.16581]
[1724452261126,11.74601583,2791.6,2791.0,0.716581]
[1724452261264,3.58238,2791.5,2790.8,3.58314]
[1724452261572,11.74601583,2791.6,2790.8,3.58311]
[1724452261979,3.5823,2791.5,2790.8,3.58311]
[1724452262363,11.74601583,2791.6,2790.8,3.58311]
[1724452262663,15.32819583,2791.6,2790.9,0.358311]
[1724452262867,15.32819583,2791.6,2790.8,3.58311]
[1724452262868,11.74601583,2791.6,2790.8,3.58311]
[1724452263117,11.74601583,2791.6,2791.0,3.58286]
[1724452263269,15.32830583,2791.6,2790.8,3.58311]
[1724452263609,11.74601583,2791.6,2790.6,3.58335]
[1724452263916,3.36302158,2791.9,2790.4,3.7152837]
[1724452263917,8.1158,2791.1,2790.4,0.1316437]
[1724452264114,3.58315,2790.9,2790.4,0.1316437]
[1724452264621,3.58333,2790.7,2790.4,0.1316437]
[1724452266218,3.63021583,2790.8,2790.4,0.1316437]
[1724452271011,11.69816,2791.5,2790.8,3.58316]
[1724452271451,3.58257,2791.3,2790.6,3.58334]
[1724452271619,3.58257,2791.3,2790.6,7.16671]
[1724452271951,3.58257,2791.3,2790.6,3.58334]
[1724452272077,3.58257,2791.3,2790.7,0.358334]
[1724452274569,11.69816,2791.5,2790.4,3.7152837]
[1724452274570,3.63021583,2791.2,2790.4,0.1316437]
[1724452274771,7.21343583,2790.8,2790.4,0.1316437]
[1724452276832,11.37028,2790.5,2790.4,0.1316437]
[1724452277793,14.95386,2790.5,2790.4,0.1316437]
[1724452277979,11.37028,2790.5,2790.4,0.1316437]
[1724452278179,13.165644,2790.5,2790.4,0.1316437]
[1724452279482,19.749224,2790.5,2790.4,0.1316437]
[1724452280035,23.332804,2790.5,2790.4,0.1316437]
[1724452280187,23.882804,2790.5,2790.4,0.1316437]
[1724452281022,11.37154,2789.6,2788.9,7.44]
[1724452281338,3.5849,2789.5,2788.7,3.58586]
[1724452281489,11.37154,2789.6,2788.7,3.58586]
[1724452281689,7.7367,2789.6,2789.0,3.58549]
[1724452281907,7.7367,2789.6,2789.0,3.58548]
[1724452282105,3.0,2789.8,2789.1,3.58532]
[1724452282316,6.58449,2789.8,2789.1,3.58532]
[1724452282630,3.5847,2789.7,2789.0,0.717111]
[1724452282834,3.0,2789.6,2789.0,0.717111]
[1724452283390,3.58492,2789.5,2788.7,3.58584]
[1724452284335,3.58492,2789.5,2788.7,7.17164]
[1724452284643,3.58492,2789.5,2788.7,3.5858]
[1724452284958,10.7867,2789.6,2788.5,11.1492]
[1724452285115,10.7867,2789.6,2788.3,11.02634]
[1724452285116,1.07867,2789.5,2788.3,11.02634]
[1724452285305,1.07867,2789.5,2788.1,11.14967]
[1724452285306,3.58559,2789.0,2788.1,11.14967]
[1724452285507,3.58533,2789.2,2788.1,7.5631]
[1724452285722,3.58533,2789.2,2788.5,3.58615]
[1724452285910,7.17011,2789.4,2788.5,3.58615]
[1724452286105,6.58516,2789.3,2788.5,3.58615]
[1724452286308,6.58516,2789.3,2788.0,19.84]
[1724452286309,3.58586,2788.8,2788.0,19.84]
[1724452286641,3.58586,2788.8,2787.9,11.02683]
[1724452286642,3.58586,2788.8,2787.9,7.44]
[1724452286936,3.58616,2788.5,2787.9,7.44]
[1724452287174,11.37283,2788.6,2787.9,11.02692]
[1724452287303,3.58637,2788.4,2787.7,0.1316437]
[1724452287505,3.5863,2788.4,2787.7,3.7188137]
[1724452287763,3.0,2788.5,2787.8,3.58693]
[1724452287939,3.0,2788.5,2787.8,4.31750437]
[1724452288126,3.0,2788.5,2787.9,3.58692]
[1724452290454,3.58581,2788.8,2788.0,3.5867]
[1724452290753,11.37222,2789.0,2788.2,3.58644]
[1724452290956,11.37222,2789.0,2788.3,3.5864]
[1724452290957,7.7867,2789.0,2788.3,3.5864]
[1724452291924,3.63021583,2789.2,2788.5,3.58613]
[1724452292102,7.7867,2789.3,2788.3,3.58631]
[1724452292317,3.58562,2789.0,2788.3,3.58631]
[1724452292628,7.7867,2789.3,2788.6,3.58594]
[1724452292811,3.58493,2789.5,2788.7,0.358594]
[1724452293044,3.58502,2789.4,2788.7,3.944374]
[1724452293215,3.58502,2789.4,2788.7,0.358594]
[1724452293553,4.77254859,2790.4,2789.1,3.58532]
[1724452293554,3.58429,2790.0,2789.1,3.58532]
[1724452293763,3.58429,2790.0,2789.2,0.358532]
[1724452293764,3.58444,2789.9,2789.2,0.358532]
[1724452294115,3.58449,2789.8,2789.2,0.358532]
[1724452294459,3.58477,2789.6,2788.8,15.0557]
[1724452294697,7.4253,2790.1,2788.8,7.44]
[1724452294834,3.5843,2790.0,2789.2,3.58524]
[1724452295177,11.00888,2790.5,2789.7,3.58453]
[1724452295392,2.2473,2791.4,2790.4,3.58367]
[1724452295596,3.80731,2791.3,2790.4,3.58367]
[1724452295757,3.58243,2791.4,2790.5,3.58356]
[1724452295934,7.4253,2791.5,2790.3,3.58383]
[1724452295935,3.58256,2791.3,2790.3,3.58383]
[1724452296145,11.05551583,2791.5,2790.3,3.58383]
[1724452296428,11.05551583,2791.5,2790.4,3.58359]
[1724452296429,3.58231,2791.5,2790.4,3.58359]
[1724452296667,3.63021583,2792.0,2790.5,0.358359]
[1724452296875,3.58245,2791.4,2790.5,3.941829]
[1724452297176,3.58245,2791.4,2790.6,3.58344]
[1724452297487,3.58245,2791.4,2790.5,0.358359]
[1724452297488,3.63021583,2791.6,2790.5,0.358359]
[1724452297649,3.63021583,2791.6,2790.2,3.58393]
[1724452297650,3.58282,2791.1,2790.2,3.58393]
[1724452297977,3.58257,2791.3,2790.3,3.58382]
[1724452298184,3.0,2791.2,2790.3,3.58382]
[1724452298539,3.0,2791.2,2790.4,3.58367]
[1724452298744,3.0,2791.2,2790.5,7.6157]
[1724452298983,3.58151,2792.2,2791.1,3.58272]
[1724452299186,3.5819,2791.9,2790.9,3.58296]
[1724452299357,3.58196,2791.8,2791.0,7.6157]
[1724452299556,3.5817,2792.0,2791.0,7.6157]
[1724452299896,3.58116,2792.4,2791.3,7.6157]
[1724452300056,3.5809,2792.6,2791.7,3.58203]
[1724452300386,3.5815,2792.2,2791.3,11.19821]
[1724452300538,3.5815,2792.2,2791.4,3.5824]
[1724452300738,3.5815,2792.2,2791.3,11.19821]
[1724452300739,3.58117,2792.4,2791.5,3.58228]
[1724452300938,3.58049,2793.0,2792.1,3.58152]
[1724452301183,3.58038,2793.0,2792.2,3.58139]
[1724452301385,3.5805,2792.9,2792.0,3.58165]
[1724452301590,3.58112,2792.5,2791.6,3.940398]
[1724452301889,3.58112,2792.5,2791.7,3.58194]
[1724452302041,3.58076,2792.7,2791.7,4.3341828]
[1724452302252,3.58067,2792.8,2792.0,3.58166]
[1724452302453,6.58076,2792.7,2791.8,3.58185]
[1724452302880,3.57974,2793.5,2792.2,3.58137]
[1724452303188,3.57901,2794.1,2793.2,3.5801]
[1724452303189,3.57907,2794.1,2793.2,3.5801]
[1724452303376,3.57962,2793.6,2792.8,7.6157]
[1724452304183,3.57948,2793.8,2792.8,11.1963]
[1724452304389,3.57951,2793.7,2792.8,7.6157]
[1724452304570,3.57976,2793.5,2792.8,7.6157]
[1724452305309,3.57976,2793.5,2792.6,3.58088]
[1724452305713,11.00491,2793.6,2792.5,3.58099]
[1724452306064,3.58,2793.3,2792.4,3.58114]
[1724452306227,3.57975,2793.5,2792.3,11.555097]
[1724452306228,3.57988,2793.4,2792.3,11.555097]
[1724452306456,3.0,2793.3,2792.6,3.58087]
[1724452306733,6.57979,2793.5,2792.6,3.58087]
[1724452306871,3.0,2793.5,2792.7,7.6157]
[1724452307071,3.0,2793.8,2792.8,3.58058]
[1724452307270,3.57912,2794.0,2793.1,7.6157]
[1724452307719,3.57933,2793.9,2793.1,7.6157]
[1724452308083,3.57876,2794.3,2793.1,7.6157]
[1724452308289,3.579,2794.1,2793.2,8.20157]
[1724452308521,3.57902,2794.1,2793.2,4.34168]
[1724452308820,3.57902,2794.1,2793.1,7.6157]
[1724452308821,3.57961,2793.6,2793.1,7.6157]
[1724452309120,3.57961,2793.6,2792.7,11.19645]
[1724452309268,3.57975,2793.5,2792.7,7.6157]
[1724452309808,6.57925,2793.9,2793.0,3.58034]
[1724452309987,6.57925,2793.9,2792.8,3.58053]
[1724452310171,3.57949,2793.7,2792.9,3.5805]
[1724452310587,7.237175,2793.9,2792.9,3.5805]
[1724452310789,7.237205,2793.9,2793.0,3.58034]
[1724452311087,3.0,2793.9,2793.1,3.58022]
[1724452311304,3.0,2793.9,2792.9,3.58047]
[1724452311514,4.8462367,2794.8,2793.6,7.6157]
[1724452311515,3.57809,2794.8,2793.6,7.6157]
[1724452311824,3.57809,2794.8,2793.5,3.57967]
[1724452311825,3.57769,2795.1,2794.2,7.6157]
[1724452312024,3.57779,2795.1,2794.2,7.6157]
[1724452312180,3.57793,2795.0,2794.2,7.6157]
[1724452312372,3.57795,2794.9,2794.2,7.6157]
[1724452312974,3.57807,2794.8,2793.8,3.57932]
[1724452313292,3.57782,2795.0,2793.3,3.57998]
[1724452313293,3.57837,2794.6,2793.3,3.57998]
[1724452313517,0.357837,2794.5,2793.6,3.57952]
[1724452314444,0.357837,2794.5,2793.7,8.053]
[1724452314650,3.5777,2795.1,2793.7,8.053]
[1724452314857,3.57695,2795.7,2794.6,8.053]
[1724452315015,4.06137367,2795.9,2794.9,3.57784]
[1724452315352,3.57628,2796.2,2795.1,3.57764]
[1724452315558,3.57679,2795.9,2795.0,8.053]
[1724452315851,3.57682,2795.8,2795.0,8.053]
[1724452316175,3.57726,2795.5,2795.0,8.053]
[1724452316444,3.57784,2795.0,2794.3,8.053]
[1724452316596,0.715433,2795.4,2794.3,8.053]
[1724452316597,3.57765,2795.2,2794.3,8.053]
[1724452316802,7.292773,2795.4,2794.3,8.053]
[1724452317038,7.292773,2795.4,2794.4,3.57848]
[1724452317039,3.0,2795.4,2794.4,3.57848]
[1724452317468,10.15474,2795.4,2794.3,8.053]
[1724452317646,6.57731,2795.4,2794.4,3.57846]
[1724452317811,3.0,2795.4,2794.3,8.053]
[1724452318150,4.8462367,2795.0,2794.3,8.053]
[1724452318362,3.57842,2794.6,2793.8,7.8742]
[1724452318505,3.48462367,2794.9,2794.0,3.57899]
[1724452318848,7.06256367,2794.9,2793.8,11.45345]
[1724452319047,3.57764,2795.2,2794.1,3.57891]
[1724452319214,3.5777,2795.1,2794.1,3.57891]
[1724452319666,3.57781,2795.0,2793.9,3.57912]
[1724452319826,3.57781,2795.0,2794.0,3.57908]
[1724452320151,3.57781,2795.0,2794.0,5.08232]
[1724452320152,4.42021467,2795.0,2794.0,5.08232]
[1724452320318,0.84240467,2795.0,2794.0,7.44]
[1724452320518,3.84240467,2795.0,2794.0,3.57908]
[1724452320852,3.84240467,2795.0,2793.8,11.45349]
[1724452321003,3.57804,2794.9,2793.8,15.03275]
[1724452321229,3.0,2794.8,2793.8,14.940735]
[1724452321662,3.0,2795.0,2793.9,3.57918]
[1724452321876,3.57815,2794.8,2793.8,11.361475]
[1724452322079,3.0,2795.0,2793.8,7.8742]
[1724452322239,3.5786,2794.4,2793.4,8.232198]
[1724452322441,7.15681,2794.6,2793.4,8.232198]
[1724452322683,6.57848,2794.5,2793.5,3.57965]
[1724452322898,3.57907,2794.1,2793.4,7.8742]
[1724452323191,3.57907,2794.1,2792.9,3.58048]
[1724452323192,3.57948,2793.7,2792.9,7.8742]
[1724452323374,4.8462367,2793.9,2792.5,7.8742]
[1724452323680,4.8462367,2793.9,2792.3,7.798137]
[1724452323681,3.0,2794.0,2793.1,3.58023]
[1724452323886,3.0,2794.2,2793.2,7.8742]
[1724452324088,3.57911,2794.0,2793.2,7.8742]
[1724452324235,3.57911,2794.0,2792.7,3.58071]
[1724452324236,7.8462367,2793.9,2792.7,7.8742]
[1724452324580,3.0,2793.8,2792.7,7.8742]
[1724452324987,3.0,2793.8,2792.8,3.58061]
[1724452325156,3.5797,2793.6,2792.7,7.8742]
[1724452325353,7.8303,2793.7,2792.7,11.4549]